[Event "*** Titled Tuesday 3|2 Blitz"]
[Site "Chess.com"]
[Date "2016.10.04"]
[Round "2"]
[White "GrigorGrigorov"]
[Black "Kubas1010"]
[Result "1-0"]
[WhiteElo "2544"]
[BlackElo "2451"]
[TimeControl "180+2"]
[EndTime "17:15:55 PDT"]
[Termination "GrigorGrigorov won by resignation"]

1. d4 {[%clk 0:03:02]} 1... d5 {[%clk 0:02:59]} 2. Nf3 {[%clk 0:03:01.8]} 2...
Nf6 {[%clk 0:02:59.8]} 3. c4 {[%clk 0:03:02.5]} 3... e6 {[%clk 0:03:00]} 4. Nc3
{[%clk 0:02:58.8]} 4... Be7 {[%clk 0:03:00.9]} 5. Bf4 {[%clk 0:02:59.5]} 5...
O-O {[%clk 0:03:01.2]} 6. e3 {[%clk 0:03:00.8]} 6... b6 {[%clk 0:03:02.1]} 7.
Rc1 {[%clk 0:03:00.7]} 7... Bb7 {[%clk 0:03:02.5]} 8. Be2 {[%clk 0:02:45.9]}
8... dxc4 {[%clk 0:03:00.8]} 9. Bxc4 {[%clk 0:02:46.6]} 9... a6 {[%clk
0:02:54.3]} 10. O-O {[%clk 0:02:44.5]} 10... b5 {[%clk 0:02:53.6]} 11. Bd3
{[%clk 0:02:44]} 11... c5 {[%clk 0:02:54.1]} 12. dxc5 {[%clk 0:02:42.6]} 12...
Nbd7 {[%clk 0:02:50.9]} 13. b4 {[%clk 0:02:19.3]} 13... Bc6 {[%clk 0:02:46.1]}
14. Nd4 {[%clk 0:02:16.1]} 14... Qc8 {[%clk 0:02:47]} 15. Nxc6 {[%clk
0:02:16.5]} 15... Qxc6 {[%clk 0:02:48.9]} 16. Be2 {[%clk 0:02:16.7]} 16... Rad8
{[%clk 0:02:39.4]} 17. Qb3 {[%clk 0:02:17]} 17... e5 {[%clk 0:02:39.7]} 18. Bg3
{[%clk 0:02:16.2]} 18... Ne8 {[%clk 0:02:31.7]} 19. Bf3 {[%clk 0:02:12.6]} 19...
Qc8 {[%clk 0:02:21]} 20. Nd5 {[%clk 0:02:12.3]} 20... Bf6 {[%clk 0:02:21.5]} 21.
c6 {[%clk 0:02:10.1]} 1-0

[Event "*** Titled Tuesday 3|2 Blitz"]
[Site "Chess.com"]
[Date "2016.10.04"]
[Round "2"]
[White "Dr-Bassem"]
[Black "jk13"]
[Result "1-0"]
[WhiteElo "2608"]
[BlackElo "2516"]
[TimeControl "180+2"]
[EndTime "17:16:40 PDT"]
[Termination "Dr-Bassem won by resignation"]

1. e4 {[%clk 0:03:01.9]} 1... e5 {[%clk 0:03:00.5]} 2. Nf3 {[%clk 0:03:02.6]}
2... Nc6 {[%clk 0:03:01.9]} 3. Bb5 {[%clk 0:03:03.1]} 3... Nf6 {[%clk
0:03:03.3]} 4. Qe2 {[%clk 0:02:53.6]} 4... Bc5 {[%clk 0:03:03.7]} 5. Bxc6 {[%clk
0:02:47]} 5... dxc6 {[%clk 0:03:04.3]} 6. Nxe5 {[%clk 0:02:47.8]} 6... O-O
{[%clk 0:03:05.8]} 7. d3 {[%clk 0:02:47.6]} 7... Re8 {[%clk 0:03:03.9]} 8. Nf3
{[%clk 0:02:47.9]} 8... Ng4 {[%clk 0:03:04.6]} 9. O-O {[%clk 0:02:47.3]} 9... f5
{[%clk 0:03:06.2]} 10. Nc3 {[%clk 0:02:44.2]} 10... Bb4 {[%clk 0:02:52.4]} 11.
Bg5 {[%clk 0:02:38]} 11... Qd6 {[%clk 0:02:49.5]} 12. h3 {[%clk 0:02:38.6]}
12... Nf6 {[%clk 0:02:42.8]} 13. e5 {[%clk 0:02:37.9]} 13... Bxc3 {[%clk
0:02:43.5]} 14. bxc3 {[%clk 0:02:37.1]} 14... Nd5 {[%clk 0:02:43.5]} 15. c4
{[%clk 0:02:35]} 15... Nb6 {[%clk 0:02:28.8]} 16. exd6 {[%clk 0:02:23.8]} 16...
Rxe2 {[%clk 0:02:30.7]} 17. dxc7 {[%clk 0:02:24.4]} 17... Rxc2 {[%clk
0:02:28.2]} 18. Rfe1 {[%clk 0:02:22.5]} 18... Bd7 {[%clk 0:02:28.7]} 19. Re7
{[%clk 0:02:07.6]} 19... Kf8 {[%clk 0:02:12]} 20. Rae1 {[%clk 0:02:02.7]} 20...
Rxa2 {[%clk 0:02:07.7]} 21. c5 {[%clk 0:02:01.4]} 21... Nd5 {[%clk 0:02:01.8]}
22. Rxd7 {[%clk 0:02:00.9]} 1-0

[Event "*** Titled Tuesday 3|2 Blitz"]
[Site "Chess.com"]
[Date "2016.10.04"]
[Round "2"]
[White "Paralinch"]
[Black "Ar4uha"]
[Result "1-0"]
[WhiteElo "2606"]
[BlackElo "2474"]
[TimeControl "180+2"]
[EndTime "17:17:56 PDT"]
[Termination "Paralinch won by resignation"]

1. e4 {[%clk 0:03:01.9]} 1... e5 {[%clk 0:02:50.8]} 2. Nf3 {[%clk 0:03:02.7]}
2... d6 {[%clk 0:02:52.5]} 3. d4 {[%clk 0:03:03.3]} 3... exd4 {[%clk 0:02:54.4]}
4. Nxd4 {[%clk 0:03:04.6]} 4... Nf6 {[%clk 0:02:56]} 5. Nc3 {[%clk 0:03:05.9]}
5... Be7 {[%clk 0:02:57.7]} 6. g3 {[%clk 0:03:04.5]} 6... O-O {[%clk 0:02:57.2]}
7. Bg2 {[%clk 0:03:05.4]} 7... Nc6 {[%clk 0:02:58]} 8. Nde2 {[%clk 0:02:57.9]}
8... Be6 {[%clk 0:02:51.6]} 9. O-O {[%clk 0:02:58.7]} 9... Qd7 {[%clk
0:02:40.3]} 10. Nf4 {[%clk 0:02:59.2]} 10... Bc4 {[%clk 0:02:41.4]} 11. Re1
{[%clk 0:02:59.4]} 11... Rfe8 {[%clk 0:02:42.8]} 12. b3 {[%clk 0:02:59.3]} 12...
Ba6 {[%clk 0:02:43.2]} 13. Bb2 {[%clk 0:03:00]} 13... Bf8 {[%clk 0:02:44.7]} 14.
Ncd5 {[%clk 0:02:55.6]} 14... Nxd5 {[%clk 0:02:44.7]} 15. Nxd5 {[%clk
0:02:57.5]} 15... Ne5 {[%clk 0:02:41.6]} 16. f4 {[%clk 0:02:53.3]} 16... Ng6
{[%clk 0:02:29.8]} 17. c4 {[%clk 0:02:38.6]} 17... Ne7 {[%clk 0:02:29]} 18. Nb4
{[%clk 0:02:36.4]} 18... Rad8 {[%clk 0:02:24.5]} 19. Qd2 {[%clk 0:02:28.2]}
19... Nc6 {[%clk 0:02:25.1]} 20. Nxa6 {[%clk 0:02:28.7]} 20... bxa6 {[%clk
0:02:27]} 21. Rad1 {[%clk 0:02:28.1]} 21... Qc8 {[%clk 0:02:24.2]} 22. Bf3
{[%clk 0:02:24.3]} 22... a5 {[%clk 0:02:24]} 23. Kg2 {[%clk 0:02:21.3]} 23...
Qa6 {[%clk 0:02:25.1]} 24. a3 {[%clk 0:02:09.5]} 24... Qb6 {[%clk 0:02:02.1]}
25. Re3 {[%clk 0:02:04.2]} 25... Rb8 {[%clk 0:01:59.3]} 26. Rd3 {[%clk
0:02:02.3]} 26... Qc5 {[%clk 0:01:50.8]} 27. h4 {[%clk 0:01:57.6]} 27... Rb6
{[%clk 0:01:43.6]} 28. Rd5 {[%clk 0:01:56.8]} 28... Rxb3 {[%clk 0:01:26.3]} 29.
Rxc5 {[%clk 0:01:56.7]} 29... dxc5 {[%clk 0:01:28.2]} 30. e5 {[%clk 0:01:50]}
30... Rd8 {[%clk 0:01:29.3]} 31. Bxc6 {[%clk 0:01:44.2]} 31... Rxd2+ {[%clk
0:01:28.5]} 32. Rxd2 {[%clk 0:01:45.4]} 1-0

[Event "*** Titled Tuesday 3|2 Blitz"]
[Site "Chess.com"]
[Date "2016.10.04"]
[Round "2"]
[White "awb2000"]
[Black "Rating-Schmating"]
[Result "1-0"]
[WhiteElo "2443"]
[BlackElo "2232"]
[TimeControl "180+2"]
[EndTime "17:18:25 PDT"]
[Termination "awb2000 won by checkmate"]

1. d4 {[%clk 0:03:02]} 1... Nf6 {[%clk 0:03:00.5]} 2. c4 {[%clk 0:03:02.9]} 2...
e6 {[%clk 0:03:01]} 3. Nf3 {[%clk 0:03:04.1]} 3... Bb4+ {[%clk 0:03:01.6]} 4.
Nbd2 {[%clk 0:03:04.8]} 4... d5 {[%clk 0:03:01.1]} 5. e3 {[%clk 0:03:04.4]} 5...
dxc4 {[%clk 0:02:59.7]} 6. Bxc4 {[%clk 0:02:56.7]} 6... O-O {[%clk 0:02:59.2]}
7. O-O {[%clk 0:02:57.8]} 7... c5 {[%clk 0:02:59.3]} 8. a3 {[%clk 0:02:58.4]}
8... Bxd2 {[%clk 0:02:59.6]} 9. Bxd2 {[%clk 0:02:59.5]} 9... cxd4 {[%clk
0:03:00.5]} 10. Nxd4 {[%clk 0:03:00.8]} 10... Bd7 {[%clk 0:02:57.7]} 11. Rc1
{[%clk 0:02:50.1]} 11... Nc6 {[%clk 0:02:58]} 12. Nb5 {[%clk 0:02:51.2]} 12...
Ne4 {[%clk 0:02:50.4]} 13. Be1 {[%clk 0:02:47.4]} 13... Ne5 {[%clk 0:02:50.5]}
14. Be2 {[%clk 0:02:43.4]} 14... Bc6 {[%clk 0:02:48.8]} 15. Nd4 {[%clk
0:02:40.4]} 15... Bd5 {[%clk 0:02:46.7]} 16. Bb4 {[%clk 0:02:20.4]} 16... Re8
{[%clk 0:02:40.1]} 17. Bb5 {[%clk 0:02:21.4]} 17... Nd7 {[%clk 0:02:27.6]} 18.
Bd3 {[%clk 0:02:00.5]} 18... Nef6 {[%clk 0:02:21.5]} 19. Nb5 {[%clk 0:01:59.7]}
19... Ne5 {[%clk 0:02:13]} 20. Nc7 {[%clk 0:01:56.5]} 20... Nxd3 {[%clk
0:02:09.3]} 21. Qxd3 {[%clk 0:01:54.6]} 21... Ng4 {[%clk 0:02:03.5]} 22. Nxa8
{[%clk 0:01:49.3]} 22... Qxa8 {[%clk 0:01:53.8]} 23. e4 {[%clk 0:01:48.9]} 23...
Bc6 {[%clk 0:01:52.4]} 24. h3 {[%clk 0:01:48.7]} 24... Nf6 {[%clk 0:01:50.9]}
25. f3 {[%clk 0:01:49]} 25... Qb8 {[%clk 0:01:50.1]} 26. Rfd1 {[%clk 0:01:49.1]}
26... Qc7 {[%clk 0:01:39.4]} 27. Bd6 {[%clk 0:01:42.8]} 27... Qb6+ {[%clk
0:01:39.3]} 28. Qd4 {[%clk 0:01:44.2]} 28... Qxd4+ {[%clk 0:01:37.8]} 29. Rxd4
{[%clk 0:01:45.4]} 29... Nd7 {[%clk 0:01:32.6]} 30. Bg3 {[%clk 0:01:44.9]} 30...
e5 {[%clk 0:01:27.7]} 31. Rd6 {[%clk 0:01:42.9]} 31... Nb6 {[%clk 0:01:22.4]}
32. Bxe5 {[%clk 0:01:41.3]} 32... Nc8 {[%clk 0:01:13.6]} 33. Rdd1 {[%clk
0:01:42.1]} 33... Rxe5 {[%clk 0:01:09.2]} 34. Rxc6 {[%clk 0:01:42.3]} 34... bxc6
{[%clk 0:01:09.4]} 35. Rd8+ {[%clk 0:01:42.6]} 35... Re8 {[%clk 0:01:10.4]} 36.
Rxe8# {[%clk 0:01:43.8]} 1-0

[Event "*** Titled Tuesday 3|2 Blitz"]
[Site "Chess.com"]
[Date "2016.10.04"]
[Round "2"]
[White "brightthunder"]
[Black "Quiet_Desperation"]
[Result "1-0"]
[WhiteElo "2395"]
[BlackElo "2226"]
[TimeControl "180+2"]
[EndTime "17:18:57 PDT"]
[Termination "brightthunder won by resignation"]

1. e4 {[%clk 0:03:01.9]} 1... Nc6 {[%clk 0:02:59.8]} 2. Nf3 {[%clk 0:03:02.3]}
2... d6 {[%clk 0:02:57.3]} 3. d4 {[%clk 0:03:02.3]} 3... Nf6 {[%clk 0:02:58.7]}
4. Nc3 {[%clk 0:03:03]} 4... d5 {[%clk 0:03:00.1]} 5. e5 {[%clk 0:03:01]} 5...
Ne4 {[%clk 0:03:01.3]} 6. Bd3 {[%clk 0:03:01.9]} 6... Bf5 {[%clk 0:03:01.5]} 7.
O-O {[%clk 0:02:57]} 7... e6 {[%clk 0:03:02.7]} 8. Re1 {[%clk 0:02:53.5]} 8...
Bb4 {[%clk 0:02:53.6]} 9. Bd2 {[%clk 0:02:46.4]} 9... Nxd2 {[%clk 0:02:52.2]}
10. Qxd2 {[%clk 0:02:46.6]} 10... Bg4 {[%clk 0:02:50]} 11. Be2 {[%clk
0:02:43.2]} 11... O-O {[%clk 0:02:46.5]} 12. a3 {[%clk 0:02:39.9]} 12... Bxc3
{[%clk 0:02:37.8]} 13. Qxc3 {[%clk 0:02:37.7]} 13... f6 {[%clk 0:02:38.7]} 14.
h3 {[%clk 0:01:55.4]} 14... Bh5 {[%clk 0:02:33.3]} 15. Rad1 {[%clk 0:01:41.5]}
15... Bxf3 {[%clk 0:02:09.5]} 16. Bxf3 {[%clk 0:01:41.7]} 16... fxe5 {[%clk
0:02:10.6]} 17. dxe5 {[%clk 0:01:43.6]} 17... Qg5 {[%clk 0:02:07.7]} 18. Qe3
{[%clk 0:01:38.5]} 18... Qxe3 {[%clk 0:02:04]} 19. Rxe3 {[%clk 0:01:40.4]} 19...
Ne7 {[%clk 0:02:03.5]} 20. c4 {[%clk 0:01:37.5]} 20... c6 {[%clk 0:02:03]} 21.
cxd5 {[%clk 0:01:31.8]} 21... cxd5 {[%clk 0:02:01.1]} 22. Rc3 {[%clk 0:01:31.1]}
22... Rac8 {[%clk 0:02:01.6]} 23. Bg4 {[%clk 0:01:29.5]} 23... Nf5 {[%clk
0:01:46.6]} 24. Bxf5 {[%clk 0:01:29.8]} 24... exf5 {[%clk 0:01:45.5]} 25. Rxd5
{[%clk 0:01:26.5]} 25... Rxc3 {[%clk 0:01:45.9]} 26. bxc3 {[%clk 0:01:28.4]}
26... Rc8 {[%clk 0:01:45.9]} 27. e6 {[%clk 0:01:28.2]} 27... Kf8 {[%clk
0:01:41.9]} 28. Rxf5+ {[%clk 0:01:27.8]} 28... Ke7 {[%clk 0:01:42.9]} 29. Rf7+
{[%clk 0:01:28.1]} 29... Kxe6 {[%clk 0:01:44.3]} 30. Rxb7 {[%clk 0:01:25.8]}
30... Rxc3 {[%clk 0:01:45.7]} 31. Rxg7 {[%clk 0:01:24.3]} 31... a5 {[%clk
0:01:45.3]} 32. a4 {[%clk 0:01:22.8]} 32... Ra3 {[%clk 0:01:45.7]} 33. Rg4
{[%clk 0:01:23.4]} 33... h5 {[%clk 0:01:45.7]} 34. Re4+ {[%clk 0:01:19.3]} 34...
Kd5 {[%clk 0:01:46]} 35. f3 {[%clk 0:01:20.7]} 35... Kc5 {[%clk 0:01:47.1]} 36.
Kh2 {[%clk 0:01:21.6]} 36... Rb3 {[%clk 0:01:48.1]} 37. Kg3 {[%clk 0:01:22.4]}
37... Rb4 {[%clk 0:01:49.2]} 38. Re5+ {[%clk 0:01:19.9]} 38... Kb6 {[%clk
0:01:50.1]} 39. Rxh5 {[%clk 0:01:20.2]} 39... Rxa4 {[%clk 0:01:51.6]} 40. Rh8
{[%clk 0:01:20.5]} 40... Rb4 {[%clk 0:01:51.2]} 41. h4 {[%clk 0:01:20.6]} 41...
a4 {[%clk 0:01:52]} 42. h5 {[%clk 0:01:20.1]} 42... a3 {[%clk 0:01:53.3]} 43.
Ra8 {[%clk 0:01:21]} 43... Rb3 {[%clk 0:01:54.7]} 44. h6 {[%clk 0:01:21.8]}
44... Kb7 {[%clk 0:01:56.2]} 45. h7 {[%clk 0:01:20.3]} 45... Kxa8 {[%clk
0:01:56.8]} 46. h8=Q+ {[%clk 0:01:21.3]} 46... Rb8 {[%clk 0:01:58.2]} 47. Qc3
{[%clk 0:01:18.9]} 1-0

[Event "*** Titled Tuesday 3|2 Blitz"]
[Site "Chess.com"]
[Date "2016.10.04"]
[Round "2"]
[White "Scott-fox21"]
[Black "NIGWAPO"]
[Result "0-1"]
[WhiteElo "2154"]
[BlackElo "2431"]
[TimeControl "180+2"]
[EndTime "17:18:58 PDT"]
[Termination "NIGWAPO won on time"]

1. d4 {[%clk 0:03:02]} 1... e6 {[%clk 0:03:00.1]} 2. c4 {[%clk 0:03:03]} 2...
Nf6 {[%clk 0:03:00.4]} 3. Nc3 {[%clk 0:03:03.9]} 3... Bb4 {[%clk 0:03:00.2]} 4.
e3 {[%clk 0:03:04.9]} 4... b6 {[%clk 0:03:00.7]} 5. Ne2 {[%clk 0:03:04.6]} 5...
Ne4 {[%clk 0:03:00.4]} 6. Qc2 {[%clk 0:02:49.8]} 6... Bb7 {[%clk 0:02:57.1]} 7.
a3 {[%clk 0:02:49.9]} 7... Bxc3+ {[%clk 0:02:58.1]} 8. Nxc3 {[%clk 0:02:50.5]}
8... f5 {[%clk 0:02:59.1]} 9. Nxe4 {[%clk 0:02:22.9]} 9... Bxe4 {[%clk 0:02:59]}
10. Qd2 {[%clk 0:02:04.6]} 10... d6 {[%clk 0:02:57.3]} 11. f3 {[%clk 0:02:03.8]}
11... Bb7 {[%clk 0:02:56.7]} 12. Bd3 {[%clk 0:02:00.4]} 12... Nd7 {[%clk
0:02:56.9]} 13. O-O {[%clk 0:01:59.5]} 13... O-O {[%clk 0:02:58.1]} 14. b4
{[%clk 0:01:50.5]} 14... Qh4 {[%clk 0:02:53.7]} 15. Qf2 {[%clk 0:01:47.7]} 15...
Qh5 {[%clk 0:02:52.1]} 16. Bb2 {[%clk 0:01:46.5]} 16... e5 {[%clk 0:02:51.2]}
17. dxe5 {[%clk 0:01:26.2]} 17... Nxe5 {[%clk 0:02:49.8]} 18. Be2 {[%clk
0:01:22.7]} 18... f4 {[%clk 0:02:51.1]} 19. e4 {[%clk 0:00:55.7]} 19... Rae8
{[%clk 0:02:37.1]} 20. c5 {[%clk 0:00:52.1]} 20... dxc5 {[%clk 0:02:28.3]} 21.
bxc5 {[%clk 0:00:53]} 21... Kh8 {[%clk 0:02:28.3]} 22. cxb6 {[%clk 0:00:53.4]}
22... axb6 {[%clk 0:02:28.3]} 23. Rac1 {[%clk 0:00:53.2]} 23... c5 {[%clk
0:02:29.1]} 24. Bb5 {[%clk 0:00:48.4]} 24... Re6 {[%clk 0:02:22.1]} 25. Rcd1
{[%clk 0:00:25.9]} 25... Rh6 {[%clk 0:02:21.4]} 26. h3 {[%clk 0:00:26.8]} 26...
Rg6 {[%clk 0:02:21.5]} 27. Bxe5 {[%clk 0:00:20.5]} 27... Qxe5 {[%clk 0:02:22]}
28. Rd7 {[%clk 0:00:20.1]} 28... Bc8 {[%clk 0:02:21.2]} 29. Rd5 {[%clk
0:00:18.3]} 29... Qe7 {[%clk 0:02:19.9]} 30. Kh2 {[%clk 0:00:18.7]} 30... h6
{[%clk 0:02:18.4]} 31. Rfd1 {[%clk 0:00:19.1]} 31... Be6 {[%clk 0:02:15.6]} 32.
Rd6 {[%clk 0:00:14.4]} 32... Rg3 {[%clk 0:02:13.5]} 33. Rxb6 {[%clk 0:00:11.8]}
33... Qh4 {[%clk 0:02:12.3]} 34. Rd2 {[%clk 0:00:03.5]} 34... Bxh3 {[%clk
0:02:10.7]} 0-1

[Event "*** Titled Tuesday 3|2 Blitz"]
[Site "Chess.com"]
[Date "2016.10.04"]
[Round "2"]
[White "johnathan113"]
[Black "gmshanmeruga"]
[Result "0-1"]
[WhiteElo "2294"]
[BlackElo "2269"]
[TimeControl "180+2"]
[EndTime "17:18:58 PDT"]
[Termination "gmshanmeruga won by resignation"]

1. d4 {[%clk 0:03:02]} 1... e6 {[%clk 0:03:01.9]} 2. e4 {[%clk 0:02:58.5]} 2...
d5 {[%clk 0:03:03.1]} 3. Nc3 {[%clk 0:02:59.3]} 3... Bb4 {[%clk 0:03:02.1]} 4.
e5 {[%clk 0:02:56.9]} 4... c5 {[%clk 0:03:02.5]} 5. Bd2 {[%clk 0:02:57.2]} 5...
cxd4 {[%clk 0:03:02.4]} 6. Nb5 {[%clk 0:02:58.3]} 6... Be7 {[%clk 0:03:01]} 7.
Qg4 {[%clk 0:02:59.1]} 7... Kf8 {[%clk 0:02:59.7]} 8. Nf3 {[%clk 0:02:55]} 8...
a6 {[%clk 0:02:58.6]} 9. Nbxd4 {[%clk 0:02:55.6]} 9... Nc6 {[%clk 0:02:59.9]}
10. O-O-O {[%clk 0:02:55.8]} 10... h5 {[%clk 0:02:57.7]} 11. Qf4 {[%clk
0:02:42]} 11... Nxd4 {[%clk 0:02:52.5]} 12. Nxd4 {[%clk 0:02:29.5]} 12... Bd7
{[%clk 0:02:53]} 13. h4 {[%clk 0:02:26.9]} 13... Rc8 {[%clk 0:02:53.3]} 14. Rh3
{[%clk 0:02:26]} 14... Nh6 {[%clk 0:02:52.6]} 15. Bd3 {[%clk 0:02:23.8]} 15...
Ng4 {[%clk 0:02:44.2]} 16. Bg6 {[%clk 0:02:05.5]} 16... f5 {[%clk 0:02:32.2]}
17. f3 {[%clk 0:01:36.5]} 17... Nf2 {[%clk 0:02:22.3]} 18. Nxf5 {[%clk
0:00:56.1]} 18... Nd3+ {[%clk 0:02:17.2]} 19. Kb1 {[%clk 0:00:55]} 19... Nxf4
{[%clk 0:02:18.3]} 20. Nxe7 {[%clk 0:00:55.9]} 20... Nxh3 {[%clk 0:02:06.8]} 21.
Nxc8 {[%clk 0:00:53.4]} 21... Nf2 {[%clk 0:01:55.2]} 22. Bb4+ {[%clk 0:00:52.9]}
22... Kg8 {[%clk 0:01:46.8]} 23. Ne7+ {[%clk 0:00:53.6]} 23... Qxe7 {[%clk
0:01:47.6]} 24. Bxe7 {[%clk 0:00:54.9]} 24... Nxd1 {[%clk 0:01:48.6]} 25. Bc5
{[%clk 0:00:52.3]} 25... Rh6 {[%clk 0:01:46.7]} 26. Bd3 {[%clk 0:00:48.8]} 26...
Bb5 {[%clk 0:01:46.5]} 27. Bxb5 {[%clk 0:00:44.2]} 27... axb5 {[%clk 0:01:48.4]}
28. Kc1 {[%clk 0:00:45.6]} 28... Nxb2 {[%clk 0:01:47.4]} 29. Kxb2 {[%clk
0:00:47.5]} 29... Rg6 {[%clk 0:01:48.7]} 30. Kb3 {[%clk 0:00:42.2]} 30... Rxg2
{[%clk 0:01:49.5]} 31. Kb4 {[%clk 0:00:40.8]} 31... Rxc2 {[%clk 0:01:50.1]} 32.
Kxb5 {[%clk 0:00:42.3]} 32... Rxa2 {[%clk 0:01:49.5]} 33. Kb6 {[%clk 0:00:43.8]}
33... Rb2+ {[%clk 0:01:49.9]} 34. Kc7 {[%clk 0:00:45.2]} 34... Kf7 {[%clk
0:01:49.9]} 35. Kd6 {[%clk 0:00:44.8]} 35... Rb3 {[%clk 0:01:51]} 36. f4 {[%clk
0:00:46.1]} 36... Rf3 {[%clk 0:01:50.4]} 37. f5 {[%clk 0:00:46.5]} 37... Rxf5
{[%clk 0:01:51.3]} 38. Bd4 {[%clk 0:00:47.9]} 0-1

[Event "*** Titled Tuesday 3|2 Blitz"]
[Site "Chess.com"]
[Date "2016.10.04"]
[Round "2"]
[White "IamSchrodingersCat"]
[Black "theprosecution1"]
[Result "1-0"]
[WhiteElo "2278"]
[BlackElo "2464"]
[TimeControl "180+2"]
[EndTime "17:19:10 PDT"]
[Termination "IamSchrodingersCat won by resignation"]

1. e4 {[%clk 0:03:01.9]} 1... c5 {[%clk 0:02:55.9]} 2. Nf3 {[%clk 0:02:58.7]}
2... d6 {[%clk 0:02:44.1]} 3. d3 {[%clk 0:02:52.1]} 3... Nf6 {[%clk 0:02:42.9]}
4. Nbd2 {[%clk 0:02:53]} 4... g6 {[%clk 0:02:34.9]} 5. g3 {[%clk 0:02:53.5]}
5... Bg7 {[%clk 0:02:35.8]} 6. Bg2 {[%clk 0:02:54.2]} 6... O-O {[%clk
0:02:37.7]} 7. O-O {[%clk 0:02:53.4]} 7... Nc6 {[%clk 0:02:39.6]} 8. a4 {[%clk
0:02:52]} 8... e5 {[%clk 0:02:38.3]} 9. h3 {[%clk 0:02:49.7]} 9... h6 {[%clk
0:02:37.4]} 10. Nc4 {[%clk 0:02:49.2]} 10... Be6 {[%clk 0:02:32.7]} 11. c3
{[%clk 0:02:49.1]} 11... Nxe4 {[%clk 0:02:28.3]} 12. Ncxe5 {[%clk 0:02:28.4]}
12... Nxc3 {[%clk 0:02:10]} 13. Nxc6 {[%clk 0:02:16.4]} 13... bxc6 {[%clk
0:02:00.7]} 14. bxc3 {[%clk 0:02:14.1]} 14... Bxc3 {[%clk 0:02:02.6]} 15. Bxh6
{[%clk 0:01:48.8]} 15... Re8 {[%clk 0:02:03.1]} 16. Rc1 {[%clk 0:01:44]} 16...
Bf6 {[%clk 0:02:04.2]} 17. Re1 {[%clk 0:01:34.7]} 17... Qa5 {[%clk 0:02:03.1]}
18. Bf4 {[%clk 0:01:19.6]} 18... Rad8 {[%clk 0:02:03.2]} 19. Qc2 {[%clk
0:01:17.1]} 19... Kg7 {[%clk 0:02:00.6]} 20. h4 {[%clk 0:01:17]} 20... Bg4
{[%clk 0:01:59.8]} 21. Rxe8 {[%clk 0:01:11.3]} 21... Rxe8 {[%clk 0:02:01.7]} 22.
Bxd6 {[%clk 0:01:11.7]} 22... Bxf3 {[%clk 0:01:55.1]} 23. Bxf3 {[%clk
0:01:11.6]} 23... Bd4 {[%clk 0:01:57]} 24. Bxc5 {[%clk 0:00:47.4]} 24... Re1+
{[%clk 0:01:57]} 25. Rxe1 {[%clk 0:00:45.3]} 25... Qxe1+ {[%clk 0:01:58.9]} 26.
Kg2 {[%clk 0:00:46.2]} 1-0

[Event "*** Titled Tuesday 3|2 Blitz"]
[Site "Chess.com"]
[Date "2016.10.04"]
[Round "2"]
[White "maciek_92"]
[Black "michaelq2d5"]
[Result "1/2-1/2"]
[WhiteElo "2604"]
[BlackElo "2526"]
[TimeControl "180+2"]
[EndTime "17:19:31 PDT"]
[Termination "Game drawn by repetition"]

1. c4 {[%clk 0:03:01.9]} 1... Nf6 {[%clk 0:02:59.9]} 2. g3 {[%clk 0:03:01.9]}
2... e6 {[%clk 0:02:59.7]} 3. Nf3 {[%clk 0:03:03.1]} 3... d5 {[%clk 0:03:00.5]}
4. d4 {[%clk 0:03:04.2]} 4... Nc6 {[%clk 0:02:56.9]} 5. Bg2 {[%clk 0:02:58.3]}
5... dxc4 {[%clk 0:02:57.3]} 6. Qa4 {[%clk 0:02:52.1]} 6... Bb4+ {[%clk
0:02:57.7]} 7. Bd2 {[%clk 0:02:51.1]} 7... Nd5 {[%clk 0:02:58.9]} 8. Bxb4 {[%clk
0:02:21.9]} 8... Nxb4 {[%clk 0:02:59.8]} 9. Nc3 {[%clk 0:02:23.4]} 9... a6
{[%clk 0:02:42.6]} 10. O-O {[%clk 0:02:19.8]} 10... Bd7 {[%clk 0:02:36.8]} 11.
Ne5 {[%clk 0:01:46.9]} 11... b5 {[%clk 0:02:19.4]} 12. Qd1 {[%clk 0:01:44.9]}
12... Rb8 {[%clk 0:02:15.3]} 13. a3 {[%clk 0:01:31.1]} 13... Nd5 {[%clk
0:02:01.5]} 14. Nxd5 {[%clk 0:01:17]} 14... exd5 {[%clk 0:02:02]} 15. Bxd5
{[%clk 0:01:17.3]} 15... Nxe5 {[%clk 0:02:02.7]} 16. dxe5 {[%clk 0:01:18.1]}
16... O-O {[%clk 0:02:04]} 17. b3 {[%clk 0:01:08.8]} 17... cxb3 {[%clk
0:02:01.7]} 18. Qxb3 {[%clk 0:01:08.2]} 18... Qe7 {[%clk 0:02:02.9]} 19. Rfd1
{[%clk 0:00:59.1]} 19... c5 {[%clk 0:01:58.6]} 20. f4 {[%clk 0:00:58]} 20... c4
{[%clk 0:01:51.9]} 21. Qb4 {[%clk 0:00:58.6]} 21... Rfe8 {[%clk 0:01:52.4]} 22.
e4 {[%clk 0:00:55.5]} 22... Bg4 {[%clk 0:01:52.2]} 23. Rd2 {[%clk 0:00:49.8]}
23... Qa7+ {[%clk 0:01:50.2]} 24. Rf2 {[%clk 0:00:47.3]} 24... Qd4 {[%clk
0:01:46.9]} 25. Rc1 {[%clk 0:00:45.4]} 25... Be6 {[%clk 0:01:22.4]} 26. Qd2
{[%clk 0:00:38]} 26... Qc5 {[%clk 0:01:23.7]} 27. Qb4 {[%clk 0:00:39]} 27... Qd4
{[%clk 0:01:24.4]} 28. Qc3 {[%clk 0:00:37.6]} 28... Qc5 {[%clk 0:01:24.3]} 29.
Qb4 {[%clk 0:00:32.4]} 29... Qd4 {[%clk 0:01:23.5]} 30. Qc3 {[%clk 0:00:31.2]}
30... Qc5 {[%clk 0:01:13.6]} 31. Qb4 {[%clk 0:00:32.1]} 31... Qd4 {[%clk
0:01:08.8]} 32. Qc3 {[%clk 0:00:32.6]} 1/2-1/2